lending/lending_fUSD_20250920
["ID","MTS","AMOUNT","RATE_DAILY","PERIOD"]
[386550947,1758381040717,-3430.1949992,0.0002,2]
[386550948,1758381040741,-3879.13375082,0.0002,2]
[386550949,1758381040881,-2230.79345293,0.0002,2]
[386550950,1758381040918,-6377.00460933,0.0002,2]
[386550951,1758381040931,-1377.63734681,0.0002,2]
[386550955,1758381043406,-822.60777449,0.000199,2]
[386550956,1758381043416,-6087.44222551,0.0002,2]
[386550985,1758381046250,-502.47039619,0.0002,2]
[386550986,1758381046341,-5245.56219108,0.0002,2]
[386550987,1758381046370,-280.87,0.0002,2]
[386550988,1758381046380,-827.30677729,0.0002,2]
[386550989,1758381046411,-3145.894203,0.0002,2]
[386551388,1758381152864,156.583161,0.00017837,2]
[386551389,1758381153313,156.583161,0.00017801,2]
[386551390,1758381153645,156.583161,0.00017651,2]
[386551391,1758381154780,156.583161,0.0001765,2]
[386551392,1758381155305,156.583161,0.0001756,2]
[386551393,1758381155557,156.583161,0.00017559,2]
[386551394,1758381156707,156.583161,0.00017451,2]
[386551395,1758381157579,264.664338,0.00017837,2]
[386551396,1758381157648,156.583161,0.00017448,2]
[386551397,1758381157756,156.583161,0.00017404,2]
[386551398,1758381157865,156.583161,0.00017404,2]
[386551399,1758381158126,156.583161,0.00017369,2]
[386551400,1758381158416,156.583161,0.00017368,2]
[386551401,1758381158446,171.739456,0.00017837,2]
[386551402,1758381158743,156.583161,0.00017313,2]
[386551403,1758381159497,156.583161,0.00017308,2]
[386551404,1758381161767,150.218613,0.00017837,2]
[386551405,1758381162076,150.218613,0.00017801,2]
[386551406,1758381162399,150.218613,0.00017651,2]
[386551407,1758381162719,150.218613,0.0001756,2]
[386551408,1758381163022,150.218613,0.00017451,2]
[386551409,1758381163331,150.218613,0.00017441,2]
[386551410,1758381163627,150.218613,0.00017404,2]
[386551411,1758381163983,150.218613,0.00017368,2]
[386551412,1758381164211,155.623431,0.00017837,2]
[386551413,1758381164287,150.218613,0.00017308,2]
[386551414,1758381164645,155.623431,0.00017801,2]
[386551415,1758381164979,155.623431,0.00017651,2]
[386551416,1758381165303,155.623431,0.0001765,2]
[386551417,1758381165619,155.623431,0.00017615,2]
[386551418,1758381165924,155.623431,0.00017559,2]
[386551419,1758381166915,155.623431,0.00017555,2]
[386551420,1758381167302,155.623431,0.00017448,2]
[386551421,1758381168262,155.623431,0.00017441,2]
[386551422,1758381168386,155.623431,0.00017404,2]
[386551423,1758381168704,155.623431,0.00017403,2]
[386551424,1758381168797,155.623431,0.00017369,2]
[386551425,1758381169543,155.623431,0.00017345,2]
[386551426,1758381170148,155.623431,0.00017313,2]
[386551427,1758381170425,155.623431,0.00017306,2]
[386551452,1758381546478,190.69,9.491e-05,2]
[386551480,1758381907065,150.0,0.00018,2]
[386551481,1758381907664,150.0,0.00018,2]
[386551484,1758381913283,150.0,0.00018,2]
[386551485,1758381914437,150.0,0.00018,2]
[386551486,1758381927212,150.0,0.00018,2]
[386551487,1758381929973,150.0,0.00018,2]
[386551495,1758382056996,72594.42297,0.000185,2]
[386551496,1758382057022,11865.81,0.000185,2]
[386551497,1758382057044,15000.0,0.000185,2]
[386551498,1758382057067,15000.0,0.000185,2]
[386551499,1758382057089,702.97225471,0.000185,2]
[386551500,1758382074119,295.27245785,0.00018,2]
[386551504,1758382092850,4382.39555811,0.0001439,2]
[386551505,1758382094412,2500.0,0.00030137,120]
[386551506,1758382108101,1500.0,0.00030137,120]
[386551518,1758382117430,270.64001248,0.0001421,7]
[386551522,1758382122702,1884.0,0.00030137,120]
[386551525,1758382125364,2694.63532365,0.0001,2]
[386551527,1758382142382,300.0,0.00018499,2]
[386551528,1758382145279,-329.59,0.000189,2]
[386551532,1758382164165,-170.41,0.000189,2]
[386551533,1758382164208,-159.18,0.00018925,2]
[386551536,1758382173772,-300.0,0.00018925,2]
[386551557,1758382232516,-42.85,0.00018925,2]
[386551558,1758382232526,-195.0,0.00018952,2]
[386551559,1758382232536,-300.0,0.00018979,2]
[386551560,1758382232545,-300.0,0.00018979,2]
[386551561,1758382232556,-1200.0,0.00018979,2]
[386551562,1758382232565,-1000.0,0.00018981,2]
[386551563,1758382232574,-190.69,0.00018982,2]
[386551564,1758382232584,-2456.85,0.00018989,2]
[386551565,1758382232594,-150.0,0.00019,2]
[386551566,1758382232603,-150.0,0.00019,2]
[386551567,1758382232612,-5911.01,0.00019086,2]
[386551568,1758382232622,-1000.0,0.00019178,2]
[386551569,1758382232631,-173.74,0.00019193,2]
[386551570,1758382232642,-300.0,0.00019423,2]
[386551571,1758382232651,-3680.0,0.00019563,2]
[386551572,1758382232661,-1998.29144388,0.000197,2]
[386551573,1758382232670,-555.29484005,0.00019726,2]
[386551574,1758382232680,-554.51380682,0.00019744,2]
[386551575,1758382232690,-2758.73087192,0.00019756,2]
[386551576,1758382232699,-2758.73087192,0.00019756,2]
[386551577,1758382232709,-260.00368782,0.00019761,2]
[386551579,1758382232719,-554.51380682,0.00019764,2]
[386551580,1758382232728,-2758.73087192,0.00019766,2]
[386551581,1758382232738,-554.51380682,0.00019767,2]
[386551583,1758382232747,-16955.29011871,0.00019769,2]
[386551585,1758382232756,-554.51380682,0.0001977,2]
[386551587,1758382232765,-2758.73087192,0.0001977,2]
[386551589,1758382232774,-260.00368782,0.00019775,2]
[386551591,1758382232783,-554.51380682,0.00019778,2]
[386551593,1758382232793,-461.80857551,0.00019783,2]
[386551595,1758382232803,-16955.29011871,0.00019794,2]
[386551598,1758382232812,-2758.73087192,0.000198,2]
[386551601,1758382232822,-1860.50705,0.000198,2]
[386551604,1758382232831,-260.00368782,0.00019806,2]
[386551606,1758382232840,-2758.73087192,0.00019809,2]
[386551608,1758382232849,-16955.29011871,0.00019824,2]
[386551610,1758382232859,-461.80857551,0.00019835,2]
[386551612,1758382232873,-260.00368782,0.0001984,2]
[386551614,1758382232883,-260.00368782,0.00019843,2]
[386551616,1758382232893,-16955.29011871,0.00019844,2]
[386551618,1758382232902,-461.80857551,0.00019844,2]
[386551620,1758382232912,-15135.91089461,0.00019845,2]
[386551622,1758382232924,-1819.3792241,0.00019845,2]
[386551624,1758382232933,-461.80857551,0.00019846,2]
[386551627,1758382232943,-2758.73087192,0.00019846,2]
[386551628,1758382232952,-260.00368782,0.00019849,2]
[386551630,1758382232962,-16955.29011871,0.0001985,2]
[386551633,1758382232972,-554.51380682,0.00019855,2]
[386551634,1758382232981,-166.51,0.00019861,2]
[386551636,1758382232990,-260.00368782,0.00019865,2]
[386551638,1758382233000,-461.80857551,0.00019881,2]
[386551640,1758382233010,-322.6107,0.00019888,2]
[386551643,1758382233020,-151.0,0.00019888,2]
[386551645,1758382233030,-554.51380682,0.00019891,2]
[386551647,1758382233040,-16955.29011871,0.00019892,2]
[386551649,1758382233051,-461.80857551,0.00019893,2]
[386551651,1758382233062,-461.80857551,0.00019893,2]
[386551653,1758382233072,-194.87891116,0.00019899,2]
[386551655,1758382233082,-500.0,0.00019899,2]
[386551657,1758382233091,-200.04008575,0.00019899,2]
[386551659,1758382233101,-155.94832954,0.00019899,2]
[386551661,1758382233111,-461.7025,0.000199,2]
[386551663,1758382233120,-5000.0,0.000199,2]
[386551665,1758382233130,-729.34994419,0.000199,2]
[386551667,1758382233140,-729.34994419,0.000199,2]
[386551669,1758382233149,-10000.0,0.000199,2]
[386551671,1758382233160,-466.795,0.000199,2]
[386551673,1758382233169,-472.14500392,0.000199,2]
[386551675,1758382233179,-16204.23532611,0.000199,2]
[386551677,1758382233189,-264.87582996,0.000199,2]
[386551679,1758382233198,-2004.46,0.000199,2]
[386551681,1758382233208,-751.35274781,0.000199,2]
[386551683,1758382233218,-1738.0908202,0.000199,2]
[386551685,1758382233228,-531.86938684,0.000199,2]
[386551687,1758382233238,-155.16093556,0.000199,2]
[386551689,1758382233248,-302.67520174,0.000199,2]
[386551691,1758382233258,-16781.95072996,0.000199,2]
[386551722,1758382234312,-704.18045442,0.000199,2]
[386551723,1758382234322,-183.79283244,0.000199,3]
[386551724,1758382234332,-46322.46230949,0.000199,2]
[386551725,1758382234342,-504.10612925,0.00019973,2]
[386551726,1758382234352,-466.48983034,0.00019973,2]
[386551727,1758382234362,-501.1233254,0.00019973,2]
[386551728,1758382234372,-500.0,0.00019973,2]
[386551729,1758382234382,-500.0,0.00019973,2]
[386551730,1758382234392,-252.43769606,0.00019973,2]
[386551731,1758382234402,-494.52841516,0.00019973,2]
[386551732,1758382234414,-7.74636467,0.00019973,2]
[386551733,1758382234423,-500.0,0.00019973,2]
[386551734,1758382234432,-504.43137738,0.00019973,2]
[386551735,1758382234442,-278.68583082,0.00019973,2]
[386551744,1758382238151,-221.31416918,0.00019973,2]
[386551745,1758382238162,-319.97196271,0.00019973,2]
[386551746,1758382238172,-505.56838693,0.00019973,2]
[386551747,1758382238181,-239.87743544,0.00019973,2]
[386551748,1758382238389,-365.266339,0.00019973,2]
[386551749,1758382238399,-503.93132093,0.00019973,2]
[386551750,1758382238409,-500.0,0.00019973,2]
[386551751,1758382238418,-501.22716773,0.00019973,2]
[386551752,1758382238428,-607.08020795,0.00019973,2]
[386551753,1758382238438,-100.82997099,0.00019973,2]
[386551754,1758382238508,-399.17002901,0.00019973,2]
[386551755,1758382238518,-500.0,0.00019973,2]
[386551756,1758382238527,-406.73490223,0.00019973,2]
[386551757,1758382238539,-100.73297987,0.00019973,2]
[386551758,1758382238548,-166.06918438,0.00019973,2]
[386551760,1758382238559,-73.02879385,0.00019973,2]
[386551873,1758382240413,-426.97120615,0.00019973,2]
[386551874,1758382240423,-501.46530364,0.00019973,2]
[386551875,1758382240433,-272.24807552,0.00019973,2]
[386551876,1758382240442,-601.5511563,0.00019973,2]
[386551877,1758382240452,-500.0,0.00019973,2]
[386551878,1758382240461,-500.0,0.00019973,2]
[386551879,1758382240471,-71.32717329,0.0001999,2]
[386551880,1758382240482,-124.58512221,0.0001999,2]
[386551881,1758382240492,-151.0,0.00019997,2]
[386551882,1758382240502,-151.0,0.00019997,2]
[386551883,1758382240511,-151.0,0.00019997,2]
[386551884,1758382240521,-1000.0,0.00019999,2]
[386551885,1758382240531,-150.0,0.00019999,2]
[386551886,1758382240540,-161.786,0.00019999,2]
[386551887,1758382240551,-150.0,0.00019999,2]
[386551888,1758382240562,-150.0,0.00019999,2]
[386551889,1758382240571,-150.0,0.00019999,2]
[386551890,1758382240581,-500.0,0.00019999,2]
[386551891,1758382240591,-150.0,0.00019999,2]
[386551892,1758382240601,-500.0,0.00019999,2]
[386551893,1758382240611,-150.0,0.00019999,2]
[386551894,1758382240620,-150.0,0.00019999,2]
[386551895,1758382240630,-150.0,0.00019999,2]
[386551896,1758382240640,-500.0,0.00019999,2]
[386551897,1758382240650,-550.0,0.00019999,2]
[386551898,1758382240659,-150.0,0.00019999,2]
[386551899,1758382240668,-150.0,0.00019999,2]
[386551900,1758382240678,-150.0,0.00019999,2]
[386551901,1758382240688,-150.0,0.00019999,2]
[386551902,1758382240697,-500.0,0.00019999,2]
[386551903,1758382240707,-500.0,0.00019999,2]
[386551904,1758382240716,-150.0,0.00019999,2]
[386551905,1758382240725,-151.05511869,0.00019999,2]
[386551906,1758382240735,-500.0,0.00019999,2]
[386551907,1758382240744,-501.0,0.00019999,2]
[386551908,1758382240754,-825.0,0.00019999,2]
[386551909,1758382240763,-500.0,0.00019999,2]
[386551910,1758382240772,-2675.0,0.00019999,2]
[386551911,1758382240781,-150.0,0.00019999,2]
[386551912,1758382240790,-500.0,0.00019999,2]
[386551913,1758382240800,-836.0,0.00019999,2]
[386551914,1758382240810,-150.0,0.00019999,2]
[386551915,1758382240819,-500.0,0.00019999,2]
[386551916,1758382240828,-150.0,0.00019999,2]
[386551917,1758382240837,-150.0,0.00019999,2]
[386551918,1758382240847,-150.0,0.00019999,2]
[386551919,1758382240856,-150.0,0.00019999,2]
[386551920,1758382240867,-500.0,0.00019999,2]
[386551921,1758382240877,-150.0,0.00019999,2]
[386551922,1758382240887,-1217.0,0.00019999,2]
[386551923,1758382240896,-353.24582316,0.00019999,2]
[386551924,1758382240909,-224.75417684,0.00019999,2]
[386551925,1758382240919,-500.0,0.00019999,2]
[386551926,1758382240928,-500.0,0.00019999,2]
[386551927,1758382240938,-500.0,0.00019999,2]
[386551928,1758382240949,-600.0,0.0002,2]
[386551929,1758382240958,-8235.52483735,0.0002,2]
[386551930,1758382240970,-4018.70472461,0.0002,2]
[386551931,1758382240982,-2931.17354403,0.0002,2]
[386551932,1758382240991,-500.0,0.0002,2]
[386551933,1758382241001,-825193.40975961,0.0002,2]
[386551934,1758382241010,-1221028.6137886,0.0002,2]
[386551935,1758382241033,-1075.81374742,0.0002,2]
[386551936,1758382241044,-697.8,0.0002,2]
[386551937,1758382241125,-1634.78099895,0.0002,2]
[386551938,1758382241137,-726.88270014,0.0002,2]
[386551980,1758382243384,-500.0,0.00018979,2]
[386551981,1758382243394,-388.00568195,0.00018979,2]
[386551982,1758382243403,-643.40717338,0.00018979,2]
[386551983,1758382243412,-500.0,0.00018979,2]
[386551984,1758382243422,-500.0,0.00018979,2]
[386551985,1758382243431,-125.35267063,0.00018979,2]
[386551986,1758382243442,-374.64732937,0.00018979,2]
[386551987,1758382243451,-500.0,0.00018979,2]
[386551988,1758382243460,-500.0,0.00018979,2]
[386551989,1758382243470,-500.0,0.00018979,2]
[386551990,1758382243479,-500.0,0.00018979,2]
[386551991,1758382243488,-1894.56096905,0.0002,2]
[386552003,1758382246268,-150.0,0.00019999,2]
[386552004,1758382246278,-150.0,0.00019999,2]
[386552005,1758382246288,-9788.71169822,0.0002,2]
[386552006,1758382246299,-13454.03566241,0.0002,2]
[386552007,1758382246351,-150.0,0.00019999,2]
[386552008,1758382246361,-719.43771164,0.0002,2]
[386552009,1758382246529,-6283.61332352,0.0002,2]
[386552010,1758382246550,-873799.28582143,0.0002,2]
[386552097,1758382328688,910.632952,7.945e-05,2]
[386552104,1758382484954,159.33,9.474e-05,2]
[386552105,1758382485021,159.33,0.0001421,2]
[386552106,1758382494087,1136.9183,0.00030137,120]
[386552109,1758382532600,-300.0,0.00018789,2]
[386552113,1758382655356,-200.0,0.00018782,2]
[386552116,1758382776387,-29.47,0.00018782,2]
[386552117,1758382776446,-323.28336812,0.00018786,2]
[386552128,1758382893760,-500.0,0.00018775,3]
[386552129,1758382907518,-500.0,0.00018775,3]
[386552130,1758382922827,-455.23116924,0.00018775,3]
[386552131,1758382944547,-25.19456747,0.00018765,2]
[386552132,1758382944571,-145.57543253,0.00018765,2]
[386552133,1758382958616,500.0,0.00013699,2]
[386552134,1758382963044,-5.0,0.00018767,2]
[386552135,1758382963215,-190.0,0.00018767,2]
[386552141,1758382985220,-195.0,0.00018672,2]
[386552142,1758382997458,-500.0,0.00018672,2]
[386552143,1758383002647,155.21,0.00016712,2]
[386552144,1758383011344,-500.0,0.00018672,2]
[386552145,1758383026330,-500.0,0.00018672,2]
[386552146,1758383043448,-410.46233848,0.00018672,2]
[386552153,1758383066649,-17.39766152,0.00018672,2]
[386552154,1758383066700,-139.81829954,0.0001868,2]
[386552173,1758383092217,-55.18170046,0.0001868,2]
[386552174,1758383092258,-89.63659908,0.00018689,2]
[386552175,1758383108838,150.0,0.00018,2]
[386552176,1758383108903,150.0,0.00018,2]
[386552177,1758383111277,-84.94340092,0.00018689,2]
[386552178,1758383111325,-30.11319816,0.00018729,2]
[386552179,1758383112775,150.0,0.00018,2]
[386552181,1758383116219,150.0,0.00018,2]
[386552182,1758383116288,150.0,0.00018,2]
[386552183,1758383117145,150.0,0.00018,2]
[386552184,1758383120053,150.0,0.00018,2]
[386552185,1758383128724,150.0,0.00018,2]
[386552186,1758383128771,150.0,0.00018,2]
[386552187,1758383130149,-35.11319816,0.00018729,2]
[386552188,1758383130173,-129.77360368,0.00018729,2]
[386552189,1758383131131,150.0,0.00018,2]
[386552217,1758383320456,436.68678825,0.00030136,120]
[386552246,1758383374990,186.084225,0.00017837,2]
[386552247,1758383380141,191.111684,0.00017837,2]
[386552248,1758383380517,191.111684,0.00017801,2]
[386552249,1758383402749,400.0,0.00030136,120]
[386552250,1758383421089,400.0,0.00030136,120]
[386552255,1758383432381,-416.76732676,0.00018636,2]
[386552259,1758383432444,-398.20267324,0.00018636,2]
[386552260,1758383432455,-435.02,0.00018654,2]
[386552261,1758383432464,-283.19192697,0.00018658,2]
[386552262,1758383432476,-16.80807303,0.00018658,2]
[386552263,1758383432485,-500.0,0.00018658,2]
[386552264,1758383432495,-500.0,0.00018658,2]
[386552265,1758383432504,-195.0,0.00018659,2]
[386552266,1758383432513,-534.64037871,0.00018659,2]
[386552267,1758383432525,-646.41720952,0.00018659,2]
[386552268,1758383432575,-500.0,0.00018658,2]
[386552269,1758383432585,-500.0,0.00018658,2]
[386552270,1758383432595,-18.94241177,0.00018659,2]
[386552271,1758383432604,-300.0,0.00018659,2]
[386552272,1758383432613,-866.0,0.0001866,2]
[386552273,1758383432623,-300.0,0.0001866,2]
[386552274,1758383432632,-250.0,0.0001866,2]
[386552275,1758383432642,-2597.06,0.00018662,2]
[386552276,1758383432651,-11.844156,0.00018789,2]
[386552277,1758383432661,-150.0,0.00018804,2]
[386552278,1758383432670,-159.33,0.00018947,2]
[386552279,1758383432679,-151.0,0.00018972,2]
[386552280,1758383432688,-151.0,0.00018976,2]
[386552281,1758383432698,-151.0,0.00018978,2]
[386552282,1758383432707,-151.0,0.0001898,2]
[386552283,1758383432719,-3588.95,0.0001899,2]
[386552284,1758383432729,-322.6107,0.00018999,2]
[386552285,1758383432738,-2943.0,0.00019022,2]
[386552286,1758383432748,-167.18,0.00019178,2]
[386552287,1758383432758,-410.81,0.00019178,2]
[386552288,1758383432768,-150.0,0.00019178,2]
[386552289,1758383432777,-168.0,0.00019551,2]
[386552290,1758383432788,-2943.0,0.00019582,2]
[386552291,1758383432799,-1442.65435151,0.00019638,2]
[386552292,1758383432809,-1075.38,0.000197,2]
[386552293,1758383432819,-170.77,0.00019703,2]
[386552294,1758383432828,-168.0,0.00019798,2]
[386552295,1758383432837,-1108.315,0.000198,2]
[386552296,1758383432846,-1767.50768,0.000198,2]
[386552297,1758383432856,-373.436,0.00019898,2]
[386552298,1758383432865,-1651.29823288,0.00019898,2]
[386552299,1758383432874,-508.69426525,0.00019898,2]
[386552300,1758383432885,-860.31582455,0.00019898,2]
[386552301,1758383432894,-165.36313619,0.00019898,2]
[386552302,1758383432904,-1000.0,0.00019898,2]
[386552303,1758383432913,-2113.2274,0.00019898,2]
[386552304,1758383432923,-1091.90931859,0.00019898,2]
[386552306,1758383432932,-1906.8078,0.00019898,2]
[386552308,1758383432941,-1651.29823282,0.00019898,2]
[386552310,1758383432950,-860.31582446,0.00019898,2]
[386552312,1758383432959,-1651.29823282,0.00019898,2]
[386552314,1758383432968,-860.31582446,0.00019898,2]
[386552316,1758383432978,-1651.29823282,0.00019899,2]
[386552318,1758383432988,-860.31582446,0.00019899,2]
[386552320,1758383432997,-459.16383068,0.00019899,2]
[386552322,1758383433006,-1651.29823282,0.00019899,2]
[386552324,1758383433015,-860.31582446,0.00019899,2]
[386552326,1758383433024,-1651.29823282,0.00019899,2]
[386552327,1758383433033,-860.31582446,0.00019899,2]
[386552329,1758383433043,-1651.29823282,0.00019899,2]
[386552332,1758383433052,-860.31582446,0.00019899,2]
[386552334,1758383433062,-1651.29823282,0.000199,2]
[386552335,1758383433072,-860.31582446,0.000199,2]
[386552337,1758383433081,-78468.9089,0.000199,2]
[386552338,1758383433091,-5000.0,0.000199,2]
[386552339,1758383433100,-1651.29823282,0.000199,2]
[386552340,1758383433110,-860.31582446,0.000199,2]
[386552341,1758383433119,-3234.4594,0.000199,2]
[386552342,1758383433129,-161.41597136,0.000199,2]
[386552343,1758383433138,-591.20299347,0.000199,2]
[386552345,1758383433148,-1651.29823282,0.000199,2]
[386552347,1758383433157,-1767.50768,0.000199,2]
[386552350,1758383433167,-176.58388664,0.000199,2]
[386552354,1758383433176,-860.31582446,0.000199,2]
[386552357,1758383433186,-1391.3108697,0.000199,2]
[386552360,1758383433195,-1158.72721346,0.000199,2]
[386552363,1758383433205,-150.0,0.00019923,2]
[386552365,1758383433215,-500.0,0.00019973,2]
[386552367,1758383433224,-500.0,0.00019973,2]
[386552369,1758383433233,-500.0,0.00019973,2]
[386552371,1758383433243,-421.07683691,0.00019973,2]
[386552373,1758383433252,-500.0,0.00019973,2]
[386552374,1758383433261,-579.42447999,0.00019973,2]
[386552375,1758383433270,-500.0,0.00019973,2]
[386552376,1758383433280,-500.0,0.00019973,2]
[386552377,1758383433289,-500.0,0.00019973,2]
[386552378,1758383433298,-225.1475594,0.00019973,2]
[386552379,1758383433308,-500.0,0.00019973,2]
[386552380,1758383433317,-151.0,0.00019997,2]
[386552381,1758383433327,-151.0,0.00019997,2]
[386552382,1758383433336,-293.79088169,0.00019997,2]
[386552383,1758383433345,-500.0,0.00019997,2]
[386552384,1758383433355,-57146.94753616,0.00019998,2]
[386552385,1758383433367,-316.52362598,0.00019998,2]
[386552386,1758383433378,-330.55581015,0.00019998,2]
[386552387,1758383433430,-500.0,0.00018658,2]
[386552388,1758383433440,-225.95001392,0.00019998,2]
[386552389,1758383433452,-83064.62981932,0.00019998,2]
[386552390,1758383433463,-2214.20883795,0.00019998,2]
[386552391,1758383433546,-528.05578277,0.00018658,2]
[386552392,1758383433556,-76630.92975852,0.00019998,2]
[386552393,1758383433566,-33307.72315104,0.00019998,2]
[386552394,1758383433578,-6004.56605736,0.00019998,2]
[386552395,1758383433588,-3641.882086,0.00019998,2]
[386552396,1758383433598,-300.0,0.00019999,2]
[386552397,1758383433608,-500.0,0.00019999,2]
[386552398,1758383433618,-150.0,0.00019999,2]
[386552399,1758383433628,-500.0,0.00019999,2]
[386552400,1758383433638,-264.02708365,0.00019999,2]
[386552401,1758383433648,-500.0,0.00019999,2]
[386552402,1758383433657,-150.0,0.00019999,2]
[386552403,1758383433667,-150.0,0.00019999,2]
[386552404,1758383433677,-1000.0,0.00019999,2]
[386552405,1758383433686,-150.0,0.00019999,2]
[386552406,1758383433696,-150.0,0.00019999,2]
[386552407,1758383433706,-150.0,0.00019999,2]
[386552408,1758383433716,-527.0,0.00019999,2]
[386552409,1758383433727,-150.0,0.00019999,2]
[386552410,1758383433738,-177.02546793,0.00019999,2]
[386552411,1758383433747,-500.0,0.00019999,2]
[386552412,1758383433757,-500.0,0.00019999,2]
[386552413,1758383433766,-500.0,0.00019999,2]
[386552414,1758383433776,-500.0,0.00019999,2]
[386552415,1758383433786,-228.06778029,0.00019999,2]
[386552416,1758383433795,-500.0,0.00019999,2]
[386552417,1758383433807,-500.0,0.00019999,2]
[386552418,1758383433818,-480.0,0.00019999,2]
[386552419,1758383433828,-791.0,0.00019999,2]
[386552420,1758383433837,-3099.0,0.00019999,2]
[386552421,1758383433846,-150.0,0.00019999,2]
[386552422,1758383433856,-500.0,0.00019999,2]
[386552423,1758383433865,-500.0,0.00019999,2]
[386552424,1758383433875,-500.0,0.00019999,2]
[386552425,1758383433885,-988.0,0.00019999,2]
[386552426,1758383433895,-988.0,0.00019999,2]
[386552427,1758383433904,-500.0,0.00019999,2]
[386552428,1758383433913,-150.0,0.00019999,2]
[386552429,1758383433923,-150.0,0.00019999,2]
[386552430,1758383433932,-500.0,0.00019999,2]
[386552431,1758383433942,-150.0,0.00019999,2]
[386552432,1758383433951,-150.0,0.00019999,2]
[386552433,1758383433960,-150.0,0.00019999,2]
[386552434,1758383433970,-474.0,0.00019999,2]
[386552435,1758383433980,-150.0,0.00019999,2]
[386552436,1758383433989,-150.0,0.00019999,2]
[386552437,1758383433999,-150.0,0.00019999,2]
[386552438,1758383434008,-1166.0,0.00019999,2]
[386552439,1758383434018,-579.0,0.00019999,2]
[386552440,1758383434027,-39540.76981931,0.0002,2]
[386552441,1758383434040,-8536.73305784,0.0002,2]
[386552442,1758383434052,-701.62574342,0.0002,2]
[386552443,1758383434083,-83830.91501712,0.0002,2]
[386552444,1758383434094,-6063.1378004,0.0002,2]
[386552445,1758383434106,-12213.64178137,0.0002,2]
[386552446,1758383434117,-5969.18766582,0.0002,2]
[386552447,1758383434145,-547.73802806,0.0002,2]
[386552448,1758383434156,-936.02531955,0.0002,2]
[386552449,1758383435397,400.0,0.00030136,120]
[386552453,1758383438365,-263.24941867,0.00019898,2]
[386552454,1758383438376,-5306.29450133,0.0002,2]
[386552455,1758383438409,-428.61941707,0.0002,2]
[386552456,1758383438695,-6832.89182072,0.0002,2]
[386552462,1758383438772,-691.20796414,0.0002,2]
[386552464,1758383438783,-30615.02589694,0.0002,2]
[386552466,1758383438795,-3021.05781,0.0002,2]
[386552483,1758383440382,-251.37,0.0002,2]
[386552484,1758383440465,-76529.01189545,0.0002,2]
[386552485,1758383440475,-500.0,0.0002,2]
[386552486,1758383440484,-9058.28832501,0.0002,2]
[386552487,1758383440494,-825193.40975961,0.0002,2]
[386552488,1758383440503,-1138372.48711217,0.0002,2]
[386552500,1758383441977,-354.86834228,0.0002,2]
[386552501,1758383441988,-296.57593812,0.0002,2]
[386552502,1758383442085,-95422.79628477,0.0002,2]
[386552503,1758383442097,-6648.61340206,0.0002,2]
[386552504,1758383443091,-4615.8459621,0.0002,2]
[386552505,1758383443103,-258.77,0.0002,2]
[386552506,1758383443138,-2728.72686756,0.0002,2]
[386552507,1758383443171,-726.97291363,0.0002,2]
[386552512,1758383444664,-151.0,0.00019014,2]
[386552513,1758383444673,-175.67521479,0.000199,2]
[386552514,1758383444683,-793.32478521,0.0002,2]
[386552515,1758383444712,-635.75639055,0.0002,2]
[386552516,1758383444726,-290.11733016,0.0002,2]
[386552517,1758383444738,-981.73496216,0.0002,2]